bitfinex-derivatives/quotes_SOLF0:USTF0_20251208
["timestamp","ask_amount","ask_price","bid_price","bid_amount"]
[1765202743755,0.05342304,138.47,138.45,1.08011444]
[1765202746251,3.26342304,138.47,138.45,0.05011444]
[1765202746952,0.05342304,138.47,138.45,1.08011444]
[1765202751853,0.05342304,138.47,138.46,3.2463393]
[1765202757066,116.0,138.5,138.47,1.02]
[1765202758067,122.55007103,138.5,138.47,1.02]
[1765202758460,125.63007103,138.5,138.47,1.02]
[1765202758656,3.08,138.49,138.46,1.02]
[1765202759066,3.08,138.49,138.45,1.07011444]
[1765202759559,6.4993,138.48,138.45,1.07011444]
[1765202760462,130.16722897,138.5,138.45,7.57061444]
[1765202760666,122.55037103,138.5,138.46,1.02]
[1765202761460,122.55037103,138.5,138.46,7.5201]
[1765202761665,122.55037103,138.5,138.47,1.02]
[1765202762470,116.05177103,138.5,138.48,1.02]
[1765202762768,0.05177103,138.5,138.48,1.02]
[1765202763662,0.05177103,138.5,138.49,62.44]
[1765202765070,3.19177103,138.5,138.49,61.42]
[1765202765266,0.05177103,138.5,138.49,61.42]
[1765202765965,5.41811033,138.5,138.49,61.42]
[1765202766271,10.80862897,138.5,138.49,58.11]
[1765202767362,126.80862897,138.5,138.49,58.11]
[1765202767566,121.44228967,138.5,138.49,58.11]
[1765202767767,116.05177103,138.5,138.49,58.11]
[1765202767976,121.44228967,138.5,138.49,58.11]
[1765202769970,5.44228967,138.5,138.49,61.17]
[1765202771672,8.58228967,138.5,138.49,58.11]
[1765202772268,5.44228967,138.5,138.49,61.17]
[1765202772869,8.58228967,138.5,138.49,58.11]
[1765202773077,5.44228967,138.5,138.49,58.11]
[1765202773377,5.44228967,138.5,138.49,61.17]
[1765202778282,3.19,138.49,138.48,0.05035605]
[1765202778580,8.58051864,138.49,138.48,0.05035605]
[1765202778776,13.51782308,138.49,138.48,0.05035605]
[1765202779976,3.19,138.48,138.45,61.4]
[1765202780176,8.58051864,138.47,138.45,61.4]
[1765202780375,130.62630444,138.49,138.45,64.5]
[1765202780580,5.4017167,138.48,138.46,3.1]
[1765202780781,5.4017167,138.47,138.46,3.1]
[1765202780980,5.4017167,138.48,138.46,3.1]
[1765202781280,116.0,138.49,138.46,3.1]
[1765202781475,5.401306,138.48,138.46,3.1]
[1765202781680,5.40160934,138.47,138.45,64.55015849]
[1765202781982,3.19,138.48,138.45,64.55015849]
[1765202782283,5.40160934,138.47,138.45,64.55015849]
[1765202782483,3.19,138.48,138.45,64.55015849]
[1765202782782,8.5918027,138.47,138.45,61.45015849]
[1765202782976,5.4018027,138.46,138.45,61.45015849]
[1765202783178,0.05041242,138.47,138.46,3.1]
[1765202783569,5.4522269,138.47,138.46,3.1]
[1765202783775,0.05041242,138.47,138.46,3.1]
[1765202785786,5.40188678,138.48,138.47,9.5997]
[1765202785981,5.40156468,138.5,138.48,3.1]
[1765202786186,5.40156468,138.49,138.48,3.1]
[1765202787380,0.05090549,138.5,138.48,3.1]
[1765202788076,0.05090549,138.5,138.49,3.1]
[1765202790782,11.94718058,138.5,138.47,3.14621789]
[1765202790983,6.54920549,138.5,138.47,3.14621789]
[1765202791187,5.39920141,138.49,138.47,3.14621789]
[1765202791398,5.39946928,138.48,138.47,0.04621789]
[1765202791993,5.39946928,138.48,138.47,3.14621789]
[1765202797097,11.52132111,138.5,138.47,3.14621789]
[1765202797292,5.39377771,138.49,138.47,3.14621789]
[1765202797492,11.52132111,138.5,138.47,3.14621789]
[1765202797693,5.39429843,138.49,138.47,3.14621789]
[1765202798001,14.71132111,138.5,138.47,3.14621789]
[1765202798297,5.39433728,138.49,138.47,3.14621789]
[1765202798592,9.73920549,138.5,138.47,3.14621789]
[1765202798593,5.39433728,138.48,138.47,3.14621789]
[1765202799397,0.05090549,138.5,138.48,3.1]
[1765202800393,0.05090549,138.5,138.49,64.5]
[1765202800593,5.43008231,138.5,138.49,64.5]
[1765202801400,0.05090549,138.5,138.49,64.5]
[1765202802195,3.24090549,138.5,138.49,61.4]
[1765202802388,8.62027896,138.5,138.49,61.4]
[1765202804199,13.59239458,138.5,138.49,61.4]
[1765202805504,5.43027896,138.5,138.49,64.5]
[1765202806301,0.05090549,138.5,138.49,64.5]
[1765202807202,5.43017042,138.5,138.49,61.4]
[1765202807599,5.43017042,138.5,138.49,64.5]
[1765202808404,8.68017042,138.5,138.49,61.4]
[1765202809192,13.65228604,138.5,138.49,61.4]
[1765202809398,8.68017042,138.5,138.49,61.4]
[1765202809692,13.65228604,138.5,138.49,61.4]
[1765202810305,20.34185395,138.5,138.49,61.4]
[1765202812004,10.40228604,138.5,138.49,64.41]
[1765202812204,5.43017042,138.5,138.49,64.41]
[1765202812907,5.43017042,138.5,138.49,61.4]
[1765202813302,10.40228604,138.5,138.49,61.4]
[1765202813508,8.68017042,138.5,138.49,61.4]
[1765202813704,13.65228604,138.5,138.49,61.4]
[1765202814613,3.25,138.48,138.47,17.69774808]
[1765202814810,13.60138055,138.48,138.47,17.69774808]
[1765202815010,13.60138055,138.48,138.45,61.4]
[1765202815213,5.37926493,138.47,138.45,64.41]
[1765202815512,5.37926493,138.46,138.45,64.45684355]
[1765202816406,0.0494971,138.47,138.46,3.01]
[1765202816605,5.42856007,138.47,138.46,3.01]
[1765202817214,5.42856007,138.47,138.45,61.44684355]
[1765202817410,3.2994971,138.47,138.45,61.44684355]
[1765202817615,5.37898902,138.46,138.45,64.45684355]
[1765202820118,5.37898902,138.46,138.45,61.44684355]
[1765202823124,13.47110464,138.46,138.45,61.44684355]
[1765202824317,20.22369807,138.46,138.45,0.04684355]
[1765202824617,13.47110464,138.46,138.45,0.04684355]
[1765202825314,9.6206,138.45,138.44,19.74]
[1765202825518,26.71394413,138.45,138.44,19.74]
[1765202825822,8.49898902,138.45,138.41,3.29]
[1765202826017,5.37898902,138.44,138.41,3.29]
[1765202826415,5.43074802,138.44,138.41,3.34264667]
[1765202826819,5.43074802,138.44,138.42,3.29]
[1765202827125,0.051759,138.44,138.42,3.29]
[1765202830718,3.171759,138.44,138.41,17.88264667]
[1765202830916,3.171759,138.44,138.41,21.17264667]
[1765202832122,3.171759,138.44,138.42,3.29]
[1765202833121,3.171759,138.44,138.41,17.88264667]
[1765202833319,3.12,138.43,138.41,17.88264667]
[1765202833825,3.12,138.42,138.41,17.88264667]
[1765202834135,3.12,138.42,138.33,3.47558472]
[1765202834136,3.0,138.41,138.33,3.29]
[1765202834321,3.0,138.4,138.35,3.29]
[1765202834631,8.37898902,138.4,138.35,3.29]
[1765202835122,3.04893942,138.39,138.36,3.34218497]
[1765202835719,9.55243942,138.39,138.36,3.34218497]
[1765202836318,9.55243942,138.39,138.36,25.20218497]
[1765202839118,0.04893942,138.39,138.37,3.28]
[1765202842225,9.55253942,138.39,138.36,25.19218497]
[1765202842523,6.55253942,138.39,138.37,3.28]
[1765202842826,0.04893942,138.39,138.37,3.28]
[1765202843325,3.04893942,138.39,138.36,25.19218497]
[1765202844124,3.04893942,138.39,138.36,21.91218497]
[1765202844325,3.0,138.38,138.36,21.91218497]
[1765202845627,9.55263942,138.39,138.36,25.19218497]
[1765202845826,3.0,138.38,138.36,21.91218497]
[1765202846828,9.504,138.38,138.36,21.91218497]
[1765202848534,3.0,138.37,138.36,21.91218497]
[1765202848926,3.0,138.37,138.36,0.05218497]
[1765202851133,9.504,138.38,138.36,0.05218497]
[1765202851530,6.504,138.38,138.36,3.33218497]
[1765202851837,0.04893942,138.39,138.36,3.33218497]
[1765202859431,116.0,138.41,138.37,3.28]
[1765202859736,8.37898902,138.44,138.39,3.28]
[1765202859933,3.0,138.44,138.39,3.28]
[1765202860338,9.5014,138.44,138.39,3.28]
[1765202860641,0.04645615,138.43,138.41,3.28]
[1765202863537,0.04645615,138.43,138.41,64.74]
[1765202863738,0.04645615,138.43,138.42,3.28]
[1765202864742,0.04645615,138.43,138.42,5.50708167]
[1765202864941,5.37898902,138.47,138.43,3.28]
[1765202865146,5.37898902,138.47,138.41,61.46]
[1765202865147,5.37898902,138.47,138.46,3.28]
[1765202865745,5.37898902,138.47,138.45,2.22708167]
[1765202866045,5.42571015,138.47,138.45,2.27492141]
[1765202866235,5.42571015,138.47,138.46,3.28]
[1765202866645,0.04672113,138.47,138.46,3.28]
[1765202866839,5.42571015,138.47,138.46,3.28]
[1765202867142,0.04672113,138.47,138.46,3.28]
[1765202867345,5.42571015,138.47,138.46,3.28]
[1765202867548,0.04672113,138.47,138.46,3.28]
[1765202867746,5.42571015,138.47,138.46,3.28]
[1765202867947,0.04672113,138.47,138.46,3.28]
[1765202868142,5.42571015,138.47,138.46,3.28]
[1765202868345,0.04672113,138.47,138.46,3.28]
[1765202868552,5.42571015,138.47,138.46,3.28]
[1765202868850,0.04672113,138.47,138.46,3.28]
[1765202869147,5.42571015,138.47,138.46,3.28]
[1765202869349,0.04672113,138.47,138.46,3.28]
[1765202869649,5.42571015,138.47,138.46,3.28]
[1765202869850,0.04672113,138.47,138.46,3.28]
[1765202870041,5.42571015,138.47,138.46,3.28]
[1765202870246,0.04672113,138.47,138.46,3.28]
[1765202880659,116.0,138.5,138.46,3.28]
[1765202880955,116.0,138.5,138.48,3.29]
[1765202881354,113.50533676,138.5,138.49,2.22708167]
[1765202881556,6.496,138.55,138.51,3.29]
[1765202881747,0.05481699,138.54,138.53,3.29]
[1765202881949,5.36708167,138.58,138.54,3.29]
[1765202881950,0.05314231,138.55,138.54,3.29]
[1765202882758,0.05314231,138.55,138.53,61.42]
[1765202882759,3.19314231,138.55,138.53,61.42]
[1765202883157,0.05314231,138.55,138.53,64.71]
[1765202883656,3.19314231,138.55,138.53,64.71]
[1765202884554,9.68924231,138.55,138.53,64.71]
[1765202885060,0.05314231,138.55,138.54,3.29]
[1765202886151,3.14,138.54,138.53,61.42]
[1765202886356,5.36708167,138.54,138.53,61.42]
[1765202886663,0.05314231,138.55,138.54,3.29]
[1765202887262,0.00314231,138.55,138.54,3.29]
[1765202887562,116.88744913,138.6,138.54,3.29]
[1765202888469,0.04630184,138.58,138.57,3.29]
[1765202888654,3.38211237,138.6,138.58,3.29]
[1765202889463,3.38211237,138.6,138.59,64.69]
[1765202890060,3.38211237,138.6,138.59,61.4]
[1765202890369,3.38211237,138.6,138.59,64.69]
[1765202891962,8.79919404,138.6,138.59,61.4]
[1765202892556,8.79919404,138.6,138.56,3.34240151]
[1765202894060,3.19,138.57,138.56,0.05240151]
[1765202894961,5.41708167,138.55,138.52,61.4]
[1765202895868,5.47057412,138.55,138.52,61.45178714]
[1765202896461,11.96667412,138.55,138.52,61.45178714]
[1765202896664,9.73959245,138.55,138.52,61.45178714]
[1765202896872,9.73959245,138.55,138.52,64.74178714]
[1765202897172,9.73959245,138.55,138.53,3.29]
[1765202897173,0.05349245,138.55,138.53,3.29]
[1765202903082,3.24349245,138.55,138.52,61.45178714]
[1765202903674,3.24349245,138.55,138.52,0.05178714]
[1765202903878,122.05867509,138.55,138.52,0.05178714]
[1765202904180,3.19,138.53,138.52,0.05178714]
[1765202904379,8.49984588,138.53,138.52,0.05178714]
[1765202905481,14.99634588,138.54,138.52,0.05178714]
[1765202905681,3.19,138.53,138.52,0.05178714]
[1765202906179,8.49984588,138.53,138.52,0.05178714]
[1765202908378,3.19,138.52,138.49,61.38]
[1765202908579,3.19,138.51,138.49,61.38]
[1765202909380,3.19,138.51,138.49,61.42707253]
[1765202909381,3.2358967,138.51,138.49,61.42707253]
[1765202909582,0.0458967,138.51,138.5,3.17]
[1765202918292,0.0458967,138.51,138.49,61.42707253]
[1765202918487,3.2358967,138.51,138.49,61.42707253]
[1765202918797,8.54574258,138.51,138.49,61.42707253]
[1765202919501,15.04394258,138.51,138.49,0.04707253]
[1765202921002,3.19,138.5,138.47,3.17]
[1765202921309,3.19,138.47,138.41,3.17]
[1765202921796,8.49984588,138.47,138.41,3.17]
[1765202921997,3.19,138.47,138.41,3.17]
[1765202922196,3.19,138.47,138.4,61.4]
[1765202922197,0.04761746,138.45,138.43,3.22300019]
[1765202924889,14.99844588,138.5,138.43,3.22300019]
[1765202925094,9.6886,138.5,138.43,3.22300019]
[1765202925806,0.05193552,138.48,138.43,3.22300019]
[1765202925993,3.29193552,138.48,138.43,3.22300019]
[1765202927103,6.4997,138.47,138.43,3.22300019]
[1765202928400,6.5002,138.46,138.43,3.22300019]
[1765202928600,3.1,138.46,138.43,3.22300019]
[1765202928801,3.1,138.46,138.43,0.05300019]
[1765202929204,3.1,138.45,138.43,0.05300019]
[1765202930503,9.6008,138.45,138.43,0.05300019]
[1765202932803,9.6008,138.45,138.43,3.29300019]
[1765202932804,6.5008,138.45,138.43,3.29300019]
[1765202938313,9.6008,138.45,138.43,0.05300019]
[1765202938917,3.1,138.44,138.43,0.05300019]
[1765202940420,3.24,138.42,138.4,61.4]
[1765202940621,3.24,138.44,138.4,64.56]
[1765202940821,5.39050101,138.45,138.41,3.16]
[1765202941023,3.28575237,138.45,138.41,3.16]
[1765202941318,6.5011,138.44,138.42,0.04554853]
[1765202942020,9.7411,138.44,138.42,0.04554853]
[1765202942619,6.5011,138.44,138.42,3.20554853]
[1765202942809,9.7411,138.44,138.42,3.20554853]
[1765202943814,9.7411,138.44,138.42,0.04554853]
[1765202944123,3.24,138.43,138.42,0.04554853]
[1765202945422,123.24733676,138.42,138.4,61.4]
[1765202946215,3.24,138.41,138.4,61.4]
[1765202947821,118.89675303,138.42,138.4,64.56]
[1765202948125,113.55200439,138.42,138.41,3.16]
[1765202949220,0.04666763,138.42,138.41,3.16]
[1765202955826,3.28666763,138.42,138.4,61.4]
[1765202957324,3.24,138.41,138.4,61.4]
[1765202960325,8.58474864,138.41,138.4,61.4]
[1765202961728,5.34474864,138.41,138.4,64.42]
[1765202962529,5.36013413,138.43,138.41,3.02]
[1765202962735,113.50533676,138.45,138.41,3.02]
[1765202963425,0.05147642,138.44,138.41,3.02]
[1765202964523,3.14147642,138.44,138.41,3.02]
[1765202964726,9.5917,138.43,138.4,64.42]
[1765202965127,5.01923057,138.44,138.41,3.02]
[1765202965332,8.10923057,138.44,138.41,3.02]
[1765202965530,8.05775415,138.43,138.4,64.42]
[1765202967337,14.79999364,138.43,138.4,64.42]
[1765202967639,4.96775415,138.42,138.4,64.42]
[1765202968933,4.96775415,138.42,138.4,61.4]
[1765202968934,8.05775415,138.42,138.4,61.4]
[1765202969133,3.09,138.41,138.4,61.4]
[1765202970428,4.96775415,138.41,138.4,61.4]
[1765202970939,4.96775415,138.42,138.41,3.02]
[1765202971734,8.05775415,138.42,138.4,64.42]
[1765202972335,14.55975415,138.42,138.4,64.42]
[1765202972540,4.96775415,138.41,138.4,61.4]
[1765202972939,4.96775415,138.41,138.4,64.42]
[1765202973140,11.70999364,138.42,138.4,64.42]
[1765202973341,4.96775415,138.41,138.4,64.42]
[1765202973541,4.96775415,138.42,138.4,64.42]
[1765202973738,4.96775415,138.41,138.4,64.42]
[1765202974042,4.96775415,138.42,138.4,64.42]
[1765202974245,4.96775415,138.41,138.4,64.42]
[1765202974436,10.31407239,138.41,138.4,64.42]
[1765202977450,5.34631824,138.41,138.4,64.42]
[1765202977647,10.31407239,138.41,138.4,64.42]
[1765202977946,5.34631824,138.41,138.4,64.42]
[1765202978133,10.31407239,138.41,138.4,64.42]
[1765202978334,5.34631824,138.41,138.4,64.42]
[1765202978533,10.31407239,138.41,138.4,64.42]
[1765202978739,5.34631824,138.41,138.4,64.42]
[1765202978938,10.31407239,138.41,138.4,64.42]
[1765202979149,5.34631824,138.41,138.4,64.42]
[1765202979341,10.31407239,138.41,138.4,64.42]
[1765202979538,5.34631824,138.41,138.4,64.42]
[1765202979837,10.31407239,138.41,138.4,64.42]
[1765202980037,5.34631824,138.41,138.4,64.42]
[1765202980243,10.31407239,138.41,138.4,64.42]
[1765202980436,5.34631824,138.41,138.4,64.42]
[1765202980643,10.31659017,138.41,138.4,64.42]
[1765202980841,5.34631824,138.41,138.4,64.42]
[1765202981042,10.31659017,138.41,138.4,64.42]
[1765202981248,5.34631824,138.41,138.4,64.42]
[1765202981449,10.31659017,138.41,138.4,64.42]
[1765202982144,10.31659017,138.41,138.4,61.4]
[1765202982354,13.40659017,138.41,138.4,61.4]
[1765202985051,126.91192693,138.41,138.4,61.4]
[1765202985255,133.65416642,138.41,138.4,61.4]
[1765202986654,130.56416642,138.41,138.4,64.42]
[1765202986856,123.82192693,138.41,138.4,64.42]
[1765202988358,123.82192693,138.41,138.4,66.64828374]
[1765202988650,5.34631824,138.41,138.4,66.64828374]
[1765202989152,4.97027193,138.43,138.4,63.62828374]
[1765202989363,113.55681318,138.44,138.41,1.32]
[1765202989563,5.02174835,138.44,138.41,1.32]
[1765202990353,0.05147642,138.44,138.42,2.22828374]
[1765202990656,5.02174835,138.44,138.43,1.32]
[1765202990852,0.05147642,138.44,138.43,1.32]
[1765202991052,5.02174835,138.44,138.43,1.32]
[1765202991246,0.05147642,138.44,138.43,1.32]
[1765202991443,5.02174835,138.44,138.43,1.32]
[1765202991652,0.05147642,138.44,138.43,1.32]
[1765202991961,5.02174835,138.44,138.43,1.32]
[1765202992156,4.97027193,138.48,138.43,1.32]
[1765202992458,4.97027193,138.47,138.46,1.27]
[1765202992663,4.97027193,138.48,138.46,1.27]
[1765202993161,0.05439758,138.48,138.46,1.31939904]
[1765202996762,3.04439758,138.48,138.46,0.04939904]
[1765202997055,8.01466951,138.48,138.46,0.04939904]
[1765202997362,2.99,138.47,138.46,0.04939904]
[1765202999058,3.3,138.46,138.42,1.27]
[1765202999260,3.3,138.45,138.42,1.27]
[1765203000359,3.34886693,138.45,138.42,1.32261256]
[1765203000561,3.3,138.44,138.42,1.32261256]
[1765203000760,0.04886693,138.45,138.42,1.32261256]
[1765203001365,5.35329857,138.45,138.42,1.32261256]
[1765203002065,0.04886693,138.45,138.42,1.32261256]
[1765203006067,0.04886693,138.45,138.42,7.82451256]
[1765203006267,0.04886693,138.45,138.43,1.27]
[1765203015381,0.04886693,138.45,138.44,1.27]
[1765203016192,0.04886693,138.45,138.43,20.53]
[1765203017490,0.04886693,138.45,138.43,19.26]
[1765203017684,0.04886693,138.45,138.44,1.27]
[1765203019299,5.30443164,138.49,138.44,1.27]
[1765203019793,5.30443164,138.48,138.44,1.27]
[1765203019994,8.31443164,138.49,138.44,1.27]
[1765203020192,5.30443164,138.48,138.44,1.27]
[1765203020380,5.35025434,138.48,138.46,1.28]
[1765203020701,11.84945434,138.48,138.46,1.28]
[1765203020882,14.85945434,138.48,138.46,1.28]
[1765203021083,14.85945434,138.48,138.45,0.04734377]
[1765203021084,3.01,138.46,138.45,0.04734377]
[1765203022282,14.81453164,138.46,138.45,0.04734377]
[1765203022486,9.5101,138.46,138.45,0.04734377]
[1765203022688,14.81453164,138.46,138.45,0.04734377]
[1765203022986,9.5101,138.46,138.45,0.04734377]
[1765203023291,14.81453164,138.46,138.45,0.04734377]
[1765203024292,14.81453164,138.46,138.43,19.26]
[1765203024293,3.01,138.44,138.43,19.26]
[1765203024497,10.54271538,138.44,138.43,19.26]
[1765203025491,17.04381538,138.44,138.43,19.26]
[1765203025995,5.30443164,138.44,138.43,20.54]
[1765203026292,5.30443164,138.44,138.43,19.26]
[1765203027084,5.30443164,138.44,138.43,20.54]
[1765203028595,8.31443164,138.44,138.43,19.26]
[1765203029898,5.30443164,138.44,138.43,20.54]
[1765203031511,8.31443164,138.44,138.43,19.26]
[1765203032201,13.23965902,138.44,138.43,19.26]
[1765203032810,10.22965902,138.44,138.43,19.26]
[1765203035311,13.23965902,138.44,138.43,19.26]
[1765203037108,8.31443164,138.44,138.43,19.26]
[1765203037312,13.23337025,138.44,138.43,19.26]
[1765203038007,19.97560974,138.44,138.43,19.26]
[1765203038413,19.97560974,138.44,138.43,16.79758355]
[1765203039002,22.20389348,138.44,138.43,16.79758355]
[1765203039406,9.5116,138.43,138.42,0.05556292]
[1765203039602,19.73497025,138.43,138.42,0.05556292]
[1765203040408,9.5125,138.42,138.39,62.7]
[1765203040610,5.30443164,138.41,138.39,62.7]
[1765203040810,5.30443164,138.4,138.39,62.7]
[1765203042422,0.04905892,138.41,138.4,1.28]
[1765203042614,5.37540466,138.41,138.4,1.28]
[1765203042915,114.55349962,138.47,138.4,1.28]
[1765203042916,6.74223949,138.46,138.4,1.28]
[1765203043217,13.24243949,138.46,138.41,6.5025]
[1765203043412,13.24243949,138.46,138.39,78.83995704]
[1765203043810,0.05280515,138.44,138.41,0.04677671]
[1765203050929,0.05280515,138.44,138.41,6.54917671]
[1765203053033,0.00280515,138.44,138.42,6.5019]
[1765203056737,0.00280515,138.44,138.43,3.47995704]
[1765203057127,5.29318228,138.48,138.43,3.47995704]
[1765203057327,5.29318228,138.49,138.44,61.44]
[1765203057735,11.79198228,138.49,138.45,6.5006]
[1765203057935,5.29318228,138.48,138.45,6.5006]
[1765203058134,0.05428728,138.48,138.45,6.54836517]
[1765203059833,0.05428728,138.48,138.46,6.5]
[1765203062242,0.05428728,138.48,138.45,3.52772221]
[1765203062243,0.05428728,138.48,138.45,0.04776517]
[1765203063446,0.05428728,138.48,138.45,6.54826517]
[1765203065043,9.83358728,138.48,138.45,0.04776517]
[1765203067043,0.05428728,138.48,138.45,0.04776517]
[1765203067346,0.05428728,138.48,138.45,6.54816517]
[1765203067549,0.05428728,138.48,138.45,0.04776517]
[1765203068448,8.57318228,138.53,138.47,3.47995704]
[1765203068649,3.28,138.53,138.48,61.42]
[1765203068943,9.7774,138.52,138.48,67.9189]
[1765203069141,118.79851904,138.55,138.49,3.47995704]
[1765203069348,0.05180178,138.53,138.51,0.04867916]
[1765203069649,0.05180178,138.53,138.52,61.42]
[1765203072246,3.28,138.58,138.53,6.4967]
[1765203073355,0.04751474,138.57,138.54,0.04570263]
[1765203074555,0.04751474,138.57,138.54,6.54200263]
[1765203075058,0.04751474,138.57,138.55,6.4958]
[1765203075649,0.04751474,138.57,138.54,0.04570263]
[1765203075849,5.29318228,138.62,138.54,0.04570263]
[1765203076154,3.28,138.76,138.69,107.435]
[1765203076359,3.28,138.76,138.7,162.3361]
[1765203076657,3.28,138.76,138.72,3.47995704]
[1765203076856,3.28,138.76,138.66,3.47995704]
[1765203076857,3.28,138.75,138.66,3.47995704]
[1765203077257,3.28,138.75,138.69,3.47995704]
[1765203077849,3.28,138.75,138.69,9.96925704]
[1765203078054,0.04922921,138.73,138.71,3.53286119]
[1765203078254,104.33485704,138.82,138.71,104.45966119]
[1765203078255,3.21,138.78,138.71,104.45966119]
[1765203078453,3.21,138.78,138.74,3.47995704]
[1765203079155,0.04321118,138.77,138.75,0.05556043]
[1765203079354,3.25321118,138.77,138.75,0.05556043]
[1765203082463,0.04321118,138.77,138.75,0.05556043]
[1765203083461,3.25321118,138.77,138.75,0.05556043]
[1765203084263,3.25321118,138.77,138.7,3.47995704]
[1765203084558,104.1188,138.75,138.66,3.47995704]
[1765203084763,104.1188,138.75,138.63,100.9831]
[1765203084764,3.21,138.73,138.64,3.47995704]
[1765203085066,3.21,138.73,138.61,101.0029]
[1765203085067,3.21,138.69,138.67,0.05535705]
[1765203088764,162.2488,138.75,138.67,0.05535705]
[1765203088765,108.56636704,138.85,138.73,100.9104]
[1765203088965,3.21,138.79,138.72,3.47995704]
[1765203089270,3.21,138.79,138.67,21.68]
[1765203089271,3.21,138.78,138.7,59.9]
[1765203089568,3.21,138.76,138.7,59.9]
[1765203089870,0.04610094,138.74,138.72,0.0518732]
[1765203090970,3.25610094,138.74,138.72,0.0518732]
[1765203092066,0.04610094,138.74,138.72,0.0518732]
[1765203095470,3.25610094,138.74,138.72,0.0518732]
[1765203099174,3.25610094,138.74,138.67,6.4902]
[1765203099963,3.25610094,138.74,138.69,0.04791722]
[1765203101677,9.74330094,138.74,138.69,0.04791722]
[1765203101867,3.21,138.73,138.7,18.61]
[1765203102768,6.53330094,138.74,138.7,18.61]
[1765203102769,0.04610094,138.74,138.7,18.61]
[1765203102969,3.25610094,138.74,138.7,18.61]
[1765203103775,3.25610094,138.74,138.61,6.4929]
[1765203103776,3.21,138.68,138.61,6.4929]
[1765203103971,3.21,138.68,138.57,106.80553504]
[1765203104178,3.21,138.68,138.58,101.0261]
[1765203104976,0.0555085,138.64,138.62,0.05326768]
[1765203106877,0.0555085,138.64,138.62,21.40326768]
[1765203108776,3.0455085,138.64,138.62,21.40326768]
[1765203116587,0.0555085,138.64,138.62,21.40326768]
[1765203117584,0.0555085,138.64,138.62,27.89576768]
[1765203120093,2.99,138.7,138.62,122.39806768]
[1765203120277,2.99,138.76,138.65,100.9749]
[1765203120984,0.05329317,138.72,138.69,6.53952297]
[1765203121221,0.05329317,138.72,138.69,0.05022297]
[1765203122891,0.05329317,138.72,138.69,6.53952297]
[1765203126291,3.25329317,138.72,138.69,0.05022297]
[1765203130304,0.05329317,138.72,138.69,6.53952297]
[1765203130702,0.05329317,138.72,138.71,2.21702326]
[1765203133495,3.25329317,138.72,138.69,0.05022297]
[1765203135509,3.2,138.71,138.69,0.05022297]
[1765203144400,3.06,138.7,138.65,6.4908]
[1765203144602,3.06,138.72,138.66,103.18122326]
[1765203144799,3.06,138.72,138.68,2.21702326]
[1765203145400,3.06,138.72,138.69,6.54275713]
[1765203145401,0.0495351,138.71,138.69,6.54275713]
[1765203146302,3.1095351,138.71,138.69,6.54275713]
[1765203146498,3.1095351,138.71,138.69,0.05355713]
[1765203147416,0.0495351,138.71,138.69,0.05355713]
[1765203148404,0.0495351,138.71,138.7,6.4889]
[1765203149909,0.0495351,138.71,138.69,19.68355713]
[1765203150322,0.0495351,138.71,138.69,26.17285713]
[1765203162030,0.0495351,138.71,138.7,6.4889]
[1765203162220,0.0495351,138.71,138.7,8.70592326]
[1765203163221,3.06,138.76,138.71,6.4884]
[1765203163222,3.06,138.75,138.71,6.4884]
[1765203163418,3.06,138.75,138.72,2.21702326]
[1765203164329,3.10960641,138.75,138.72,2.26880366]
[1765203164932,3.10960641,138.75,138.72,0.0517804]
[1765203173735,3.10960641,138.75,138.72,6.5396804]
[1765203174733,3.10960641,138.75,138.72,0.0517804]
[1765203175339,6.4872,138.74,138.72,0.0517804]
[1765203175543,3.11,138.73,138.72,0.0517804]
[1765203181252,2.97,138.71,138.69,19.63]
[1765203181747,2.97,138.7,138.69,19.63]
[1765203196748,9.4589,138.7,138.69,19.63]
[1765203198150,9.4589,138.7,138.69,13.03]